lending/lending_fUSD_20260211
["ID","MTS","AMOUNT","RATE_DAILY","PERIOD"]
[405101124,1770815440813,-1275.39079215,0.00016251,5]
[405101126,1770815440822,-500.0,0.00016251,2]
[405101127,1770815440830,-33323.5159,0.00016252,2]
[405101129,1770815440840,-1000.0,0.00016252,2]
[405101131,1770815440848,-182.59241347,0.00016356,2]
[405101134,1770815440858,-2236.63568122,0.00016407,2]
[405101136,1770815440866,-1234.61364278,0.00016408,2]
[405101139,1770815440875,-1000.0,0.00016438,2]
[405101141,1770815440884,-162.01657734,0.00016451,2]
[405101143,1770815440893,-42949.6689857,0.00016456,2]
[405101145,1770815440902,-152.4375,0.00016456,2]
[405101146,1770815440911,-426387.4762377,0.00016456,2]
[405101147,1770815440919,-2259.6,0.00016551,2]
[405101148,1770815440928,-2259.6,0.00016551,2]
[405101149,1770815440937,-2259.6,0.00016551,2]
[405101150,1770815440947,-2259.6,0.00016551,2]
[405101151,1770815440956,-2259.6,0.00016551,2]
[405101152,1770815440965,-2259.6,0.00016551,2]
[405101153,1770815440986,-2259.6,0.00016551,2]
[405101154,1770815440996,-2259.6,0.00016551,2]
[405101155,1770815441006,-2259.6,0.00016551,2]
[405101156,1770815441017,-2259.6,0.00016551,2]
[405101157,1770815441028,-2259.6,0.00016551,2]
[405101158,1770815441038,-2259.6,0.00016551,2]
[405101159,1770815441049,-227.67632575,0.00016589,2]
[405101160,1770815441058,-151.10721361,0.00016626,6]
[405101161,1770815441068,-3240.0,0.00016633,2]
[405101162,1770815441078,-2236.63568122,0.00016656,2]
[405101163,1770815441088,-1000.0,0.00016712,2]
[405101164,1770815441098,-1102.0,0.000168,3]
[405101165,1770815441108,-8882.37938024,0.00016817,2]
[405101166,1770815441118,-150.0,0.00016848,2]
[405101167,1770815441127,-2793.65294116,0.00016894,2]
[405101168,1770815441138,-2236.63568122,0.00016904,2]
[405101169,1770815441148,-277.35679052,0.00016933,2]
[405101170,1770815441157,-1000.0,0.0001695,2]
[405101171,1770815441166,-2259.6,0.0001695,2]
[405101172,1770815441176,-2259.6,0.0001695,2]
[405101173,1770815441186,-500.0,0.0001695,2]
[405101174,1770815441195,-15435.1459597,0.00016951,2]
[405101175,1770815441204,-500.0,0.00016951,2]
[405101176,1770815441213,-153.4566854,0.00016952,2]
[405101177,1770815441223,-1000.0,0.00016986,2]
[405101178,1770815441232,-2259.6,0.00016999,2]
[405101179,1770815441242,-500.0,0.00016999,2]
[405101180,1770815441252,-1125.99372529,0.00017,2]
[405101181,1770815441266,-67216.0,0.00017,2]
[405101182,1770815441278,-4652.09014242,0.00017,2]
[405101192,1770815445931,-2431.58276039,0.00015733,2]
[405101193,1770815446147,-310.25882034,0.00015733,2]
[405101194,1770815446204,-983.64227187,0.00015733,2]
[405101195,1770815446218,-891.93999999,0.00015733,2]
[405101196,1770815446230,-999.4796696,0.00015733,2]
[405101210,1770815463171,1000.0,0.00032,120]
[405101211,1770815463477,1000.0,0.00032,120]
[405101212,1770815463745,1000.0,0.00032,120]
[405101213,1770815464005,835.149,0.00032,120]
[405101218,1770816237169,999.99,0.000125,10]
[405101250,1770816632179,-200.0,0.00014778,2]
[405101251,1770816632190,-200.0,0.00014822,2]
[405101252,1770816632200,-161.36,0.00014822,2]
[405101253,1770816632210,-167.69658628,0.000149,5]
[405101254,1770816632223,-232.30341372,0.000149,5]
[405101255,1770816632232,-426.11917555,0.00015,5]
[405101256,1770816632242,-1068.98181167,0.00015044,2]
[405101257,1770816632254,-461.42885743,0.00015044,2]
[405101258,1770816632271,-21.3293309,0.00015044,2]
[405101259,1770816632280,-678.7206691,0.00015195,2]
[405101260,1770816632296,-437.436765,0.00015195,2]
[405101261,1770816632324,-544.02,0.00015195,2]
[405101262,1770816632337,-41.7425659,0.00015195,2]
[405101263,1770816632347,-2009.12763686,0.00015225,2]
[405101264,1770816632357,-364.78979724,0.00015233,2]
[405101266,1770816632369,-2135.21020276,0.00015233,2]
[405101268,1770816632379,-5045.89823596,0.00015233,2]
[405101270,1770816632388,-3099.96578457,0.00015233,2]
[405101272,1770816632398,-364.86,0.00015243,2]
[405101273,1770816632408,-1762.49,0.00015323,2]
[405101274,1770816632418,-1762.49,0.00015323,2]
[405101276,1770816632430,-1762.49,0.00015323,2]
[405101277,1770816632440,-1762.49,0.00015323,2]
[405101278,1770816632450,-1762.49,0.00015323,2]
[405101279,1770816632460,-1000.0,0.00015332,2]
[405101280,1770816632470,-211.39397255,0.00015332,2]
[405101281,1770816632480,-500.0,0.00015332,2]
[405101282,1770816632490,-273.59612357,0.00015332,2]
[405101283,1770816632499,-506.15997087,0.00015332,2]
[405101284,1770816632509,-500.0,0.00015332,2]
[405101285,1770816632524,-578.39927052,0.00015332,2]
[405101286,1770816632533,-300.0,0.00015332,2]
[405101287,1770816632543,-63649.25561734,0.00015333,2]
[405101288,1770816632564,-1171.15387376,0.00015333,2]
[405101292,1770816638169,-347.32,0.00015333,2]
[405101293,1770816638230,-1020.29583807,0.00015333,2]
[405101294,1770816638243,-626.63407669,0.00015333,2]
[405101295,1770816638255,-398.88911022,0.00015333,2]
[405101296,1770816638305,-836.01971632,0.00015333,2]
[405101297,1770816638364,-1691.53860017,0.00015333,2]
[405101298,1770816638376,-3516.55,0.00015333,2]
[405101299,1770816638424,-17401.00640134,0.00015333,2]
[405101308,1770816640277,-7633.13592568,0.00015333,2]
[405101310,1770816640342,-1819.1209591,0.00015333,2]
[405101311,1770816640356,-293.9302,0.00015333,2]
[405101312,1770816640514,-328587.6908411,0.00015333,2]
[405101313,1770816640526,-1902.07,0.00015333,2]
[405101314,1770816640629,-534713.39404021,0.00015333,2]
[405101315,1770816640639,-1126.55359944,0.00015333,2]
[405101316,1770816640649,-5045.89823594,0.00015529,2]
[405101317,1770816640659,-411.351,0.00015532,2]
[405101318,1770816640669,-500.0,0.00015532,2]
[405101319,1770816640679,-500.0,0.00015532,2]
[405101320,1770816640688,-500.0,0.00015532,2]
[405101321,1770816640697,-500.0,0.00015532,2]
[405101322,1770816640707,-1006.45,0.00015542,2]
[405101323,1770816640715,-979.85,0.00015542,2]
[405101324,1770816640724,-206.85979037,0.00015552,2]
[405101325,1770816640732,-150.0,0.00015552,2]
[405101326,1770816640741,-150.0,0.00015607,2]
[405101327,1770816640750,-3099.96578452,0.00015614,2]
[405101328,1770816640759,-500.0,0.00015632,2]
[405101329,1770816640769,-500.0,0.00015632,2]
[405101330,1770816640778,-500.0,0.00015632,2]
[405101331,1770816640787,-500.0,0.00015632,2]
[405101332,1770816640797,-33323.5159,0.00015633,2]
[405101333,1770816640807,-150.0,0.00015662,2]
[405101334,1770816640816,-283.58148437,0.00015667,2]
[405101335,1770816640829,-150.82598324,0.00015716,2]
[405101336,1770816640838,-1275.39079215,0.00015732,5]
[405101337,1770816640847,-150.0,0.00015783,2]
[405101338,1770816640856,-800.0,0.000158,5]
[405101339,1770816640865,-5045.89823594,0.00015826,2]
[405101340,1770816640874,-168.751621,0.00015838,2]
[405101341,1770816640883,-1000.0,0.00015867,2]
[405101342,1770816640891,-1200.0,0.000159,5]
[405101343,1770816640900,-1401.66951787,0.00015957,2]
[405101344,1770816640909,-3099.96578452,0.00015995,2]
[405101345,1770816640918,-161.36,0.00016057,2]
[405101346,1770816640928,-5045.89823594,0.00016122,2]
[405101347,1770816640937,-1126.55359939,0.00016141,2]
[405101348,1770816640947,-501.89548392,0.00016151,2]
[405101349,1770816640957,-350.0,0.00016155,2]
[405101350,1770816640966,-36588.56,0.000162,5]
[405101351,1770816640975,-283.58148437,0.00016225,2]
[405101352,1770816640984,-2251.62254601,0.00016274,2]
[405101353,1770816640994,-1006.45,0.00016319,2]
[405101354,1770816641003,-1401.66951783,0.00016346,2]
[405101355,1770816641012,-3099.96578452,0.00016376,2]
[405101356,1770816641021,-5045.89823594,0.00016418,2]
[405101357,1770816641030,-1000.0,0.00016438,2]
[405101358,1770816641039,-327.0,0.00016448,2]
[405101359,1770816641048,-900.0,0.00016451,2]
[405101360,1770816641058,-416.0,0.00016467,2]
[405101361,1770816641067,-445.0,0.0001648,2]
[405101362,1770816641078,-350.0,0.00016505,2]
[405101363,1770816641087,-350.0,0.0001654,2]
[405101364,1770816641097,-500.0,0.00016547,2]
[405101365,1770816641106,-118880.0369122,0.00016548,2]
[405101366,1770816641115,-12125.8048944,0.00016548,2]
[405101367,1770816641124,-32212.2517392,0.00016548,2]
[405101368,1770816641133,-152.4375001,0.00016548,2]
[405101369,1770816641143,-3309.3410654,0.00016548,2]
[405101370,1770816641153,-319790.6071782,0.00016548,2]
[405101371,1770816641162,-151.0,0.00016548,2]
[405101372,1770816641172,-151.0,0.00016548,2]
[405101373,1770816641180,-493.462307,0.00016548,2]
[405101374,1770816641190,-493.462307,0.00016548,2]
[405101375,1770816641199,-493.462307,0.00016548,2]
[405101376,1770816641208,-493.462307,0.00016548,2]
[405101377,1770816641219,-403.0,0.00016612,2]
[405101378,1770816641228,-151.0,0.00016695,2]
[405101379,1770816641237,-500.0,0.00016695,2]
[405101380,1770816641246,-500.0,0.00016695,2]
[405101381,1770816641255,-500.0,0.00016695,2]
[405101382,1770816641264,-250.0,0.00016695,2]
[405101383,1770816641273,-500.0,0.00016695,2]
[405101384,1770816641282,-250.0,0.00016695,2]
[405101385,1770816641291,-500.0,0.00016695,2]
[405101386,1770816641300,-250.0,0.00016695,2]
[405101387,1770816641309,-500.0,0.00016695,2]
[405101388,1770816641318,-250.0,0.00016695,2]
[405101389,1770816641331,-250.0,0.00016695,2]
[405101390,1770816641341,-448.42107791,0.00016695,2]
[405101391,1770816641350,-250.0,0.00016695,2]
[405101392,1770816641360,-250.0,0.00016695,2]
[405101393,1770816641369,-260.23349697,0.00016695,2]
[405101394,1770816641378,-250.0,0.00016695,2]
[405101395,1770816641387,-250.0,0.00016695,2]
[405101396,1770816641395,-277.35679052,0.00016695,2]
[405101397,1770816641404,-250.0,0.00016695,2]
[405101398,1770816641414,-262.73598838,0.00016695,2]
[405101399,1770816641423,-1000.0,0.00016712,2]
[405101400,1770816641432,-5045.89823594,0.00016715,2]
[405101401,1770816641442,-162.0,0.0001672,2]
[405101402,1770816641451,-151.10721361,0.00016726,2]
[405101403,1770816641461,-1401.66951783,0.00016734,2]
[405101404,1770816641470,-164.66725645,0.0001675,2]
[405101405,1770816641481,-3099.96578452,0.00016757,2]
[405101406,1770816641489,-283.58148437,0.00016784,2]
[405101407,1770816641498,-330.4684463,0.00016819,2]
[405101408,1770816641507,-385.0,0.00016896,2]
[405101409,1770816641517,-2012.0,0.000169,2]
[405101410,1770816641527,-416.0,0.00016939,2]
[405101411,1770816641537,-1126.55359939,0.00016949,2]
[405101412,1770816641546,-267.0,0.00016953,2]
[405101413,1770816641555,-416.0,0.00016972,2]
[405101414,1770816641565,-1000.0,0.00016986,2]
[405101415,1770816641579,-416.0,0.00016987,2]
[405101416,1770816641588,-500.0,0.00016999,2]
[405101417,1770816641597,-213828.76226923,0.00017,2]
[405101418,1770816641607,-151.0,0.00017,2]
[405101419,1770816641616,-151.0,0.00017,2]
[405101420,1770816641626,-177.01848,0.00017,2]
[405101421,1770816641636,-177.01848,0.00017,2]
[405101422,1770816641645,-177.01848,0.00017,2]
[405101423,1770816641653,-177.01848,0.00017,2]
[405101424,1770816641663,-638.2,0.00017,2]
[405101425,1770816641672,-178.51986,0.00017,2]
[405101426,1770816641681,-178.51987,0.00017,2]
[405101427,1770816641690,-178.51987,0.00017,2]
[405101428,1770816641699,-178.51987,0.00017,2]
[405101429,1770816641708,-178.51987,0.00017,2]
[405101430,1770816641718,-5045.89823594,0.00017011,2]
[405101431,1770816641727,-1006.45,0.00017096,2]
[405101432,1770816641736,-1401.66951783,0.00017123,2]
[405101433,1770816641746,-3099.96578452,0.00017138,2]
[405101434,1770816641755,-350.0,0.00017179,2]
[405101435,1770816641764,-11271.0,0.00017217,2]
[405101436,1770816641773,-287.61899177,0.00017243,2]
[405101437,1770816641783,-1000.0,0.0001726,2]
[405101438,1770816641792,-638.2,0.00017274,2]
[405101439,1770816641802,-161.36,0.00017293,2]
[405101440,1770816641811,-5045.89823594,0.00017307,2]
[405101441,1770816641820,-283.58148437,0.00017342,2]
[405101442,1770816641834,-2494.11745517,0.00017357,2]
[405101443,1770816641843,-166.67,0.00017395,2]
[405101444,1770816641852,-350.0,0.00017411,2]
[405101445,1770816641861,-178.0,0.00017427,2]
[405101446,1770816641871,-155.34959577,0.0001745,2]
[405101447,1770816641880,-150.887,0.00017476,2]
[405101448,1770816641890,-1273.0,0.00017476,2]
[405101449,1770816641899,-918.0,0.00017476,2]
[405101450,1770816641908,-1212.019,0.00017476,2]
[405101451,1770816641922,-3487.0,0.00017476,2]
[405101452,1770816641930,-2449.0,0.00017476,2]
[405101453,1770816641940,-1337.0,0.00017476,2]
[405101454,1770816641951,-1000.0,0.00017496,2]
[405101455,1770816641960,-1401.66951783,0.00017511,2]
[405101456,1770816641969,-1000.0,0.00017534,2]
[405101457,1770816641978,-638.2,0.00017548,2]
[405101458,1770816641987,-150.0,0.00017576,2]
[405101459,1770816641996,-150.0,0.00017576,2]
[405101460,1770816642005,-150.0,0.00017576,2]
[405101461,1770816642014,-150.0,0.00017576,2]
[405101462,1770816642023,-350.0,0.00017588,2]
[405101463,1770816642032,-368.79128323,0.000176,2]
[405101464,1770816642041,-1600.0,0.000176,6]
[405101465,1770816642051,-5045.89823594,0.00017604,2]
[405101466,1770816642060,-350.0,0.00017623,2]
[405101467,1770816642069,-3510.8141643,0.0001764,2]
[405101468,1770816642081,-2000.0,0.000177,6]
[405101469,1770816642092,-5347.89,0.00017728,2]
[405101470,1770816642101,-9999.99,0.00017728,2]
[405101471,1770816642111,-150.99,0.00017728,2]
[405101472,1770816642120,-197.812594,0.00017728,2]
[405101473,1770816642131,-233.767785,0.00017728,2]
[405101474,1770816642140,-493.462307,0.00017728,2]
[405101475,1770816642153,-493.462307,0.00017728,2]
[405101476,1770816642162,-493.462307,0.00017728,2]
[405101477,1770816642171,-493.462307,0.00017728,2]
[405101478,1770816642180,-1126.55359939,0.00017758,2]
[405101479,1770816642188,-350.0,0.00017784,2]
[405101480,1770816642197,-298.26089446,0.00017791,2]
[405101481,1770816642207,-182.59241347,0.000178,2]
[405101482,1770816642216,-400.0,0.000178,6]
[405101483,1770816642225,-500.0,0.00017807,2]
[405101484,1770816642235,-20000.0,0.00017808,2]
[405101485,1770816642245,-500.0,0.00017808,2]
[405101486,1770816642254,-500.0,0.00017808,2]
[405101487,1770816642264,-500.0,0.00017808,2]
[405101488,1770816642273,-500.0,0.00017808,2]
[405101489,1770816642282,-500.0,0.00017808,2]
[405101490,1770816642291,-500.0,0.00017808,2]
[405101491,1770816642301,-280.78519666,0.00017808,2]
[405101492,1770816642310,-500.0,0.00017808,2]
[405101493,1770816642319,-500.0,0.00017808,2]
[405101494,1770816642331,-500.0,0.00017808,2]
[405101495,1770816642340,-500.0,0.00017808,2]
[405101496,1770816642350,-500.0,0.00017808,2]
[405101497,1770816642359,-500.0,0.00017808,2]
[405101498,1770816642369,-450.0,0.00017808,2]
[405101499,1770816642378,-500.0,0.00017808,2]
[405101500,1770816642387,-1000.0,0.00017808,2]
[405101501,1770816642396,-900.0,0.00017821,2]
[405101502,1770816642406,-638.2,0.00017822,2]
[405101503,1770816642415,-200.0,0.00017856,2]
[405101504,1770816642425,-534.40264883,0.00017873,2]
[405101505,1770816642434,-500.0,0.00017873,2]
[405101506,1770816642443,-500.0,0.00017873,2]
[405101507,1770816642452,-500.0,0.00017873,2]
[405101508,1770816642462,-500.0,0.00017873,2]
[405101509,1770816642471,-1006.45,0.00017873,2]
[405101510,1770816642480,-168.0,0.0001788,2]
[405101511,1770816642489,-350.0,0.00017881,2]
[405101512,1770816642499,-416.3699995,0.000179,3]
[405101513,1770816642508,-283.58148437,0.000179,2]
[405101514,1770816642518,-25000.0,0.000179,3]
[405101515,1770816642528,-10000.0,0.000179,2]
[405101516,1770816642537,-8882.37938024,0.000179,2]
[405101517,1770816642546,-400.0,0.000179,6]
[405101518,1770816642555,-1234.61364278,0.000179,2]
[405101519,1770816642564,-1401.66951783,0.000179,2]
[405101520,1770816642573,-4457.81807352,0.000179,2]
[405101521,1770816642588,-5045.89823594,0.000179,2]
[405101522,1770816642596,-19005.94151887,0.000179,2]
[405101523,1770816642610,-3326.83136312,0.000179,2]
[405101524,1770816642621,-325.30831617,0.000179,2]
[405101525,1770816642633,-671.62540627,0.000179,2]
[405101526,1770816642659,-882.17954295,0.000179,2]
[405101539,1770816646895,-192.55751109,0.00015233,2]
[405101540,1770816646904,-63.20008599,0.00017519,2]
[405101541,1770816646915,-690.4,0.00017519,2]
[405101542,1770816646927,-669.83,0.00017519,2]
[405101543,1770816647060,-1676.53569853,0.00017519,2]
[405101544,1770816647069,-220.483363,0.00017873,2]
[405101545,1770816647079,-5080.88093847,0.000179,2]
[405101548,1770816680703,3379.66,0.00035616,120]
[405101554,1770816774904,168.0,0.00035616,120]
[405101604,1770817832276,-259.0,0.00013307,2]
[405101606,1770817832293,-2183.1934077,0.00013324,2]
[405101607,1770817832388,-127.2465923,0.00013324,2]
[405101608,1770817832403,-1843.15584182,0.00013531,2]
[405101609,1770817832413,-500.0,0.00013995,2]
[405101610,1770817832423,-150.0,0.00014117,2]
[405101611,1770817832432,-1000.0,0.00014314,2]
[405101612,1770817832442,-3240.0,0.0001439,2]
[405101613,1770817832451,-1905.86531744,0.00014413,2]
[405101614,1770817832461,-300.0,0.000145,5]
[405101615,1770817832471,-700.0,0.000146,5]
[405101616,1770817832481,-8332.46606593,0.00014683,2]
[405101617,1770817832490,-1682.1727,0.00014683,2]
[405101618,1770817832500,-1100.0,0.000147,5]
[405101619,1770817832509,-2408.70308839,0.000147,2]
[405101620,1770817832519,-8882.37938032,0.000147,2]
[405101621,1770817832530,-500.0,0.00014773,2]
[405101622,1770817832541,-500.0,0.00014773,2]
[405101623,1770817832552,-157.56683688,0.00014773,2]
[405101625,1770817832562,-150.0,0.00014782,2]
[405101626,1770817832572,-126007.23667382,0.00014782,2]
[405101628,1770817832582,-265362.79435483,0.00014783,2]
[405101632,1770817832602,-2364.61060515,0.00014783,2]
[405101637,1770817837416,-1341.69773257,0.00014783,2]
[405101638,1770817837429,-1260.0,0.00014783,2]
[405101639,1770817837440,-1118.10003,0.00014783,2]
[405101640,1770817837451,-304.14982411,0.00014783,2]
[405101641,1770817837463,-336.41,0.00014783,2]
[405101642,1770817837474,-506.74432434,0.00014783,2]
[405101643,1770817837489,-336.60999971,0.00014783,2]
[405101653,1770817839434,-1392.10538075,0.00014783,2]
[405101654,1770817839498,-405.36,0.00014783,2]
[405101655,1770817839511,-269.59985751,0.00014783,2]
[405101656,1770817839785,-420.70797009,0.00014783,2]
[405101657,1770817839797,-366.02479236,0.00014783,2]
[405101658,1770817839808,-337.3061328,0.00014783,2]
[405101659,1770817839820,-412.8989822,0.00014783,2]
[405101660,1770817839850,-258178.27401358,0.00014783,2]
[405101661,1770817839861,-1500.0,0.000148,5]
[405101662,1770817839871,-1888.8333,0.00014833,2]
[405101663,1770817839880,-2500.0,0.00014833,2]
[405101664,1770817839890,-831.50396121,0.00014883,2]
[405101665,1770817839900,-1900.0,0.000149,5]
[405101666,1770817839909,-500.0,0.00014932,2]
[405101667,1770817839919,-500.0,0.00014932,2]
[405101669,1770817839929,-500.0,0.00014932,2]
[405101670,1770817839939,-500.0,0.00014932,2]
[405101671,1770817839949,-412.37780593,0.00014932,2]
[405101672,1770817839958,-500.0,0.00014932,2]
[405101673,1770817839968,-541.5172865,0.00014932,2]
[405101674,1770817839978,-411.351,0.00014932,2]
[405101675,1770817839988,-518.70244682,0.00014932,2]
[405101676,1770817839997,-520.25784948,0.00014932,2]
[405101677,1770817840007,-500.0,0.00014932,2]
[405101678,1770817840017,-500.0,0.00014932,2]
[405101680,1770817840027,-297.78,0.00014983,2]
[405101682,1770817840036,-8332.4660659,0.0001504,2]
[405101684,1770817840046,-8882.37938024,0.00015056,2]
[405101686,1770817840055,-283.58148437,0.00015133,2]
[405101688,1770817840064,-2408.70308839,0.00015157,2]
[405101690,1770817840074,-192.55751107,0.00015195,2]
[405101692,1770817840084,-1275.39079215,0.00015232,5]
[405101693,1770817840093,-500.0,0.00015232,2]
[405101694,1770817840102,-500.0,0.00015232,2]
[405101695,1770817840112,-1203.2391,0.00015233,2]
[405101696,1770817840121,-1000.0,0.00015233,2]
[405101697,1770817840131,-558409.7741,0.00015233,2]
[405101698,1770817840142,-500.0,0.00015273,2]
[405101699,1770817840153,-500.0,0.00015273,2]
[405101700,1770817840163,-500.0,0.00015273,2]
[405101701,1770817840173,-508.75425762,0.00015273,2]
[405101702,1770817840182,-1968.57479306,0.00015295,2]
[405101703,1770817840192,-500.0,0.00015321,2]
[405101704,1770817840201,-1000.0,0.00015321,2]
[405101705,1770817840213,-500.0,0.00015332,2]
[405101706,1770817840222,-500.0,0.00015332,2]
[405101707,1770817840232,-150.0,0.00015338,2]
[405101708,1770817840244,-150.0,0.00015338,2]
[405101709,1770817840255,-245.85501438,0.00015338,2]
[405101710,1770817840265,-168.751621,0.00015393,2]
[405101711,1770817840274,-150.0,0.00015393,2]
[405101712,1770817840283,-8332.4660659,0.00015398,2]
[405101713,1770817840293,-8882.37938024,0.00015411,2]
[405101714,1770817840302,-150.0,0.00015448,2]
[405101715,1770817840312,-150.0,0.00015502,2]
[405101716,1770817840321,-178.31,0.00015503,2]
[405101717,1770817840331,-150.82598324,0.00015557,2]
[405101718,1770817840340,-2408.70308839,0.00015614,2]
[405101719,1770817840350,-203.88,0.0001564,2]
[405101720,1770817840359,-166.66,0.0001571,2]
[405101721,1770817840368,-8332.4660659,0.00015755,2]
[405101722,1770817840378,-8882.37938024,0.00015767,2]
[405101723,1770817840387,-1000.0,0.00015821,2]
[405101724,1770817840396,-283.58148437,0.00015825,2]
[405101725,1770817840405,-1500.0,0.00015868,2]
[405101726,1770817840414,-257.447609,0.00016,2]
[405101727,1770817840423,-831.50396121,0.00016012,2]
[405101728,1770817840432,-166.66,0.00016041,2]
[405101729,1770817840441,-151.10721361,0.00016071,2]
[405101730,1770817840450,-2408.70308839,0.00016071,2]
[405101731,1770817840459,-1000.0,0.00016103,2]
[405101732,1770817840469,-8332.4660659,0.00016113,2]
[405101733,1770817840478,-8882.37938024,0.00016122,2]
[405101734,1770817840487,-206.85979037,0.00016123,2]
[405101735,1770817840497,-2031.28426868,0.00016178,2]
[405101736,1770817840506,-424.0,0.000162,2]
[405101737,1770817840516,-1421.14329274,0.00016368,2]
[405101738,1770817840525,-166.66,0.00016372,2]
[405101739,1770817840535,-841.0,0.000164,2]
[405101740,1770817840550,-1427.28043664,0.00016416,2]
[405101741,1770817840560,-277.35679052,0.00016438,2]
[405101742,1770817840570,-151.0,0.00016438,2]
[405101743,1770817840583,-250.0,0.00016438,2]
[405101744,1770817840592,-250.0,0.00016438,2]
[405101745,1770817840602,-250.0,0.00016438,2]
[405101746,1770817840612,-250.0,0.00016438,2]
[405101747,1770817840623,-250.0,0.00016438,2]
[405101748,1770817840633,-250.0,0.00016438,2]
[405101749,1770817840645,-500.0,0.00016438,2]
[405101750,1770817840655,-250.0,0.00016438,2]
[405101751,1770817840666,-260.23349697,0.00016438,2]
[405101752,1770817840676,-500.0,0.00016438,2]
[405101753,1770817840686,-250.0,0.00016438,2]
[405101754,1770817840696,-500.0,0.00016438,2]
[405101755,1770817840707,-250.0,0.00016438,2]
[405101756,1770817840716,-500.0,0.00016438,2]
[405101757,1770817840726,-250.0,0.00016438,2]
[405101758,1770817840735,-500.0,0.00016438,2]
[405101759,1770817840745,-262.73598838,0.00016438,2]
[405101760,1770817840755,-500.0,0.00016438,2]
[405101761,1770817840764,-448.42107791,0.00016438,2]
[405101762,1770817840774,-638.2,0.0001645,2]
[405101763,1770817840783,-8332.4660659,0.0001647,2]
[405101764,1770817840792,-8882.37938024,0.00016478,2]
[405101765,1770817840802,-164.66725645,0.00016493,2]
[405101766,1770817840811,-192.55751107,0.00016495,2]
[405101767,1770817840821,-283.58148437,0.00016517,2]
[405101768,1770817840831,-2408.70308839,0.00016529,2]
[405101769,1770817840841,-250.0,0.00016595,2]
[405101770,1770817840850,-500.0,0.00016625,2]
[405101771,1770817840860,-166.66,0.00016703,2]
[405101772,1770817840870,-839.0,0.0001672,2]
[405101773,1770817840879,-638.2,0.00016724,2]
[405101774,1770817840889,-254.0,0.00016753,2]
[405101775,1770817840898,-8332.4660659,0.00016828,2]
[405101776,1770817840908,-8882.37938024,0.00016833,2]
[405101777,1770817840918,-166.66,0.00016862,2]
[405101778,1770817840927,-2408.70308839,0.00016986,2]
[405101779,1770817840937,-287.61899177,0.00016986,2]
[405101780,1770817840946,-638.2,0.00016998,2]
[405101781,1770817840956,-166.66,0.00017033,2]
[405101782,1770817840966,-841.0,0.0001704,2]
[405101783,1770817840975,-2093.99374431,0.0001706,2]
[405101784,1770817840984,-831.50396121,0.00017142,2]
[405101785,1770817840993,-11264.0,0.00017184,2]
[405101786,1770817841003,-8332.4660659,0.00017185,2]
[405101787,1770817841012,-8882.37938024,0.00017189,2]
[405101788,1770817841022,-350.0,0.00017202,2]
[405101789,1770817841031,-283.58148437,0.00017208,2]
[405101790,1770817841040,-1000.0,0.0001726,2]
[405101791,1770817841050,-164.72381557,0.00017267,2]
[405101792,1770817841059,-638.2,0.00017272,2]
[405101793,1770817841068,-169.0,0.00017307,2]
[405101794,1770817841077,-2828.0,0.0001736,2]
[405101795,1770817841087,-841.0,0.0001736,2]
[405101796,1770817841097,-166.66,0.00017364,2]
[405101797,1770817841106,-2408.70308839,0.00017443,2]
[405101798,1770817841115,-155.34959577,0.00017449,2]
[405101799,1770817841125,-350.0,0.00017515,2]
[405101800,1770817841134,-1337.0,0.00017529,2]
[405101801,1770817841144,-617.018,0.00017529,2]
[405101802,1770817841153,-3487.0,0.00017529,2]
[405101803,1770817841162,-1336.494,0.00017529,2]